bitfinex/quotes_BTCUSD_20250115
["timestamp","ask_amount","ask_price","bid_price","bid_amount"]
[1736901404812,1.5609015,97077.0,97076.0,0.0011957]
[1736901405088,1.5699015,97077.0,97076.0,0.0011957]
[1736901405383,1.85580263,97077.0,97076.0,0.0011957]
[1736901405626,1.85580263,97077.0,97047.0,0.06702066]
[1736901405627,0.023,97066.0,97049.0,0.0788]
[1736901405855,0.206079,97050.0,97049.0,0.0788]
[1736901406096,0.206079,97050.0,97049.0,0.0782]
[1736901406097,0.00739592,97050.0,97049.0,0.0782]
[1736901406310,0.21347492,97050.0,97049.0,0.0782]
[1736901406518,0.21347492,97050.0,97049.0,0.38732]
[1736901406728,0.27603671,97050.0,97049.0,0.38732]
[1736901406939,0.46121002,97050.0,97049.0,0.38732]
[1736901407563,0.46121002,97050.0,97049.0,0.30912]
[1736901407785,0.48421002,97050.0,97049.0,0.30912]
[1736901407997,1.13607571,97050.0,97049.0,0.30912]
[1736901408209,1.04259171,97050.0,97049.0,0.30912]
[1736901408450,1.04959171,97050.0,97049.0,0.30852]
[1736901408660,0.98869171,97050.0,97049.0,0.30852]
[1736901408869,0.84303871,97050.0,97049.0,0.30852]
[1736901409048,0.85203871,97050.0,97049.0,0.30852]
[1736901409270,0.84303871,97050.0,97049.0,0.30852]
[1736901409623,0.77280766,97050.0,97049.0,0.30852]
[1736901409827,0.71024587,97050.0,97049.0,0.30852]
[1736901410033,0.71224587,97050.0,97049.0,0.30852]
[1736901410674,0.71024587,97050.0,97049.0,0.30852]
[1736901410883,0.70324587,97050.0,97049.0,0.30852]
[1736901411080,0.51324187,97050.0,97049.0,0.30852]
[1736901411295,0.50293387,97050.0,97049.0,0.30852]
[1736901411498,0.45102564,97050.0,97049.0,0.30852]
[1736901411704,0.57566964,97050.0,97049.0,0.30852]
[1736901411916,0.58466964,97050.0,97049.0,0.30852]
[1736901412342,0.57566964,97050.0,97049.0,0.30852]
[1736901412555,0.45102564,97050.0,97049.0,0.30852]
[1736901412754,0.65123964,97050.0,97049.0,0.30852]
[1736901412961,0.64223964,97050.0,97049.0,0.30852]
[1736901413278,0.64423964,97050.0,97049.0,0.30852]
[1736901413468,0.60084087,97050.0,97049.0,0.30852]
[1736901413670,0.59884087,97050.0,97049.0,0.30852]
[1736901414106,0.59984087,97050.0,97049.0,0.30852]
[1736901414266,0.56538587,97050.0,97049.0,0.30852]
[1736901414677,0.51848587,97050.0,97049.0,0.30852]
[1736901414928,0.38362687,97050.0,97049.0,0.3093751]
[1736901415469,0.79841206,97050.0,97049.0,0.3093751]
[1736901415676,0.70233777,97050.0,97049.0,0.3093751]
[1736901415881,0.68633777,97050.0,97049.0,0.3093751]
[1736901416082,0.69533777,97050.0,97049.0,0.3093751]
[1736901416503,0.65618877,97050.0,97049.0,0.3093751]
[1736901416679,0.65518877,97050.0,97049.0,0.3093751]
[1736901416897,0.65618877,97050.0,97049.0,0.3093751]
[1736901417307,0.64718877,97050.0,97049.0,0.3093751]
[1736901417507,0.64618877,97050.0,97049.0,0.3093751]
[1736901417681,0.65418877,97050.0,97049.0,0.3093751]
[1736901417887,0.64618877,97050.0,97049.0,0.3093751]
[1736901418133,0.65418877,97050.0,97049.0,0.3093751]
[1736901418660,0.64618877,97050.0,97049.0,0.3093751]
[1736901418814,0.65418877,97050.0,97049.0,0.3093751]
[1736901419022,0.64618877,97050.0,97049.0,0.3093751]
[1736901419620,0.58721858,97050.0,97049.0,0.3093751]
[1736901420666,0.59721858,97050.0,97049.0,0.3093751]
[1736901420886,0.58821858,97050.0,97049.0,0.3093751]
[1736901421303,0.59621858,97050.0,97049.0,0.3093751]
[1736901421520,0.59721858,97050.0,97049.0,0.3093751]
[1736901421728,0.6952855,97050.0,97049.0,0.3093751]
[1736901421944,0.6151125,97050.0,97049.0,0.3093751]
[1736901422923,0.6141125,97050.0,97049.0,0.3093751]
[1736901423341,0.51088558,97050.0,97049.0,0.3093751]
[1736901423541,0.40842258,97050.0,97049.0,0.3093751]
[1736901423788,0.02318358,97050.0,97049.0,0.3093751]
[1736901423940,0.02094766,97050.0,97049.0,0.38864576]
[1736901424147,0.00179571,97050.0,97049.0,0.51694576]
[1736901424369,0.01179571,97050.0,97049.0,0.51694576]
[1736901424575,0.18803638,97050.0,97049.0,0.51694576]
[1736901424784,0.18703638,97050.0,97049.0,0.51694576]
[1736901424982,0.19603638,97050.0,97049.0,0.51694576]
[1736901425189,0.18703638,97050.0,97049.0,0.51694576]
[1736901425385,0.18703638,97050.0,97049.0,0.72302676]
[1736901426092,0.00179571,97050.0,97049.0,0.72302676]
[1736901426325,0.00279571,97050.0,97049.0,0.72302676]
[1736901426730,0.00179571,97050.0,97049.0,0.4499251]
[1736901426907,0.10602263,97050.0,97049.0,0.51794576]
[1736901427064,0.00179571,97050.0,97049.0,0.51794576]
[1736901427465,0.10602263,97050.0,97049.0,0.51694576]
[1736901427694,0.3160172,97050.0,97049.0,0.3894751]
[1736901427901,0.3390172,97050.0,97049.0,0.3103751]
[1736901428423,0.48216015,97050.0,97049.0,0.3103751]
[1736901429002,0.42316558,97050.0,97049.0,0.3103751]
[1736901429166,0.42216558,97050.0,97049.0,0.3093751]
[1736901429385,0.42816558,97050.0,97049.0,0.3093751]
[1736901429595,0.42816558,97050.0,97049.0,0.3103751]
[1736901429989,0.42816558,97050.0,97049.0,0.3093751]
[1736901430703,0.41599358,97050.0,97049.0,0.3093751]
[1736901431118,0.29520558,97050.0,97049.0,0.3093751]
[1736901431318,0.28920558,97050.0,97049.0,0.3093751]
[1736901431727,0.36734074,97050.0,97049.0,0.3093751]
[1736901431925,0.46730474,97050.0,97049.0,0.3093751]
[1736901432377,0.40516958,97050.0,97049.0,0.3093751]
[1736901432575,0.26720558,97050.0,97049.0,0.3093751]
[1736901432808,0.27336558,97050.0,97049.0,0.38864576]
[1736901432933,0.12520558,97050.0,97049.0,0.38864576]
[1736901433134,0.00179571,97050.0,97049.0,0.51694576]
[1736901433547,0.00279571,97050.0,97049.0,0.51694576]
[1736901433752,0.20279571,97050.0,97049.0,0.51694576]
[1736901433952,0.20179571,97050.0,97049.0,0.51694576]
[1736901434354,0.20179571,97050.0,97049.0,0.51794576]
[1736901434574,0.20979571,97050.0,97049.0,0.51794576]
[1736901434777,0.20179571,97050.0,97049.0,0.51794576]
[1736901436049,0.20179571,97050.0,97049.0,0.51694576]
[1736901436457,0.20179571,97050.0,97049.0,0.51794576]
[1736901436862,0.20179571,97050.0,97049.0,0.51694576]
[1736901437087,0.20179571,97050.0,97049.0,0.51794576]
[1736901437292,0.20279571,97050.0,97049.0,0.51794576]
[1736901437911,0.20379571,97050.0,97049.0,0.51794576]
[1736901438314,0.20279571,97050.0,97049.0,0.51794576]
[1736901438522,0.20279571,97050.0,97049.0,0.4509251]
[1736901438523,0.20379571,97050.0,97049.0,0.4509251]
[1736901438719,0.30702263,97050.0,97049.0,0.3216251]
[1736901438925,0.6786509,97050.0,97049.0,0.38964576]
[1736901439153,0.6806509,97050.0,97049.0,0.38964576]
[1736901439516,0.6806509,97050.0,97049.0,0.38864576]
[1736901439517,0.6786509,97050.0,97049.0,0.38864576]
[1736901439900,0.69296297,97050.0,97049.0,0.3226251]
[1736901440102,0.86498376,97050.0,97049.0,0.38964576]
[1736901440305,0.65790476,97050.0,97049.0,0.38864576]
[1736901440723,0.65790476,97050.0,97049.0,0.38964576]
[1736901441358,0.65790476,97050.0,97049.0,0.3226251]
[1736901441562,0.66190476,97050.0,97049.0,0.3103751]
[1736901441769,0.57679882,97050.0,97049.0,0.3103751]
[1736901442005,0.57979882,97050.0,97049.0,0.3103751]
[1736901442254,0.57979882,97050.0,97049.0,0.3093751]
[1736901442460,0.59979882,97050.0,97049.0,0.3093751]
[1736901442668,0.60779882,97050.0,97049.0,0.3103751]
[1736901442881,0.59979882,97050.0,97049.0,0.3103751]
[1736901443332,1.79530116,97050.0,97049.0,0.15069032]
[1736901443536,1.76919316,97050.0,97049.0,0.10887432]
[1736901443797,1.68492916,97050.0,97049.0,0.10887432]
[1736901444003,1.68492916,97050.0,97049.0,0.08826632]
[1736901444204,1.69392916,97050.0,97049.0,0.04952832]
[1736901444436,1.68492916,97050.0,97049.0,0.04952832]
[1736901444876,1.69392916,97050.0,97049.0,0.04952832]
[1736901445079,1.65994982,97050.0,97049.0,0.04952832]
[1736901445280,1.4753649,97050.0,97049.0,0.04952832]
[1736901445485,1.4582299,97050.0,97049.0,0.04952832]
[1736901445886,1.48720924,97050.0,97049.0,0.04952832]
[1736901446184,1.49120924,97050.0,97049.0,0.04952832]
[1736901447239,0.54155124,97050.0,97049.0,0.04952832]
[1736901447450,2.37538708,97050.0,97049.0,0.04952832]
[1736901448270,2.37138708,97050.0,97049.0,0.04952832]
[1736901448418,2.13093908,97050.0,97049.0,0.04952832]
[1736901448620,1.99449708,97050.0,97049.0,0.04952832]
[1736901448827,1.98321008,97050.0,97049.0,0.04952832]
[1736901449194,1.88774974,97050.0,97049.0,0.04952832]
[1736901449396,1.92072908,97050.0,97049.0,0.04952832]
[1736901449612,1.91572908,97050.0,97049.0,0.04952832]
[1736901449823,1.91972908,97050.0,97049.0,0.04952832]
[1736901450026,1.91972908,97050.0,97049.0,0.00831232]
[1736901450403,1.88674974,97050.0,97049.0,0.00831232]
[1736901450751,1.91972908,97050.0,97049.0,0.00831232]
[1736901450958,1.91072908,97050.0,97049.0,0.00831232]
[1736901451179,1.87774974,97050.0,97049.0,0.00831232]
[1736901451321,1.88674974,97050.0,97049.0,0.00831232]
[1736901451521,1.72909974,97050.0,97049.0,0.00831232]
[1736901451936,1.73409974,97050.0,97049.0,0.00831232]
[1736901452158,1.72509974,97050.0,97049.0,0.00831232]
[1736901452377,1.73009974,97050.0,97049.0,0.00831232]
[1736901452795,1.72509974,97050.0,97049.0,0.00831232]
[1736901452988,1.71293382,97050.0,97049.0,0.00831232]
[1736901453480,1.70893382,97050.0,97049.0,0.00831232]
[1736901453698,1.41727282,97050.0,97049.0,0.00831232]
[1736901453906,1.42127282,97050.0,97049.0,0.00831232]
[1736901454111,1.43027282,97050.0,97049.0,0.00831232]
[1736901454476,1.42127282,97050.0,97049.0,0.00831232]
[1736901454663,1.43027282,97050.0,97049.0,0.00831232]
[1736901455069,1.42127282,97050.0,97049.0,0.00831232]
[1736901455471,1.42627282,97050.0,97049.0,0.00831232]
[1736901455640,1.43027282,97050.0,97049.0,0.00831232]
[1736901456193,1.42627282,97050.0,97049.0,0.00831232]
[1736901456398,1.42927282,97050.0,97049.0,0.00831232]
[1736901456606,1.42027282,97050.0,97049.0,0.00831232]
[1736901456776,1.41727282,97050.0,97049.0,0.00831232]
[1736901456988,1.42627282,97050.0,97049.0,0.00831232]
[1736901457173,1.42127282,97050.0,97049.0,0.00831232]
[1736901457373,1.41511282,97050.0,97049.0,0.00831232]
[1736901457576,0.61279882,97050.0,97049.0,0.00831232]
[1736901457889,1.0414679,97050.0,97049.0,0.00831232]
[1736901458058,0.8832719,97050.0,97049.0,0.00831232]
[1736901458259,0.8574319,97050.0,97049.0,0.00831232]
[1736901458496,0.8534319,97050.0,97049.0,0.00831232]
[1736901458677,0.8654319,97050.0,97049.0,0.00831232]
[1736901459374,0.96965882,97050.0,97049.0,0.00831232]
[1736901459806,0.96965882,97050.0,97049.0,0.00791232]
[1736901460509,1.01096682,97050.0,97049.0,0.00791232]
[1736901461558,0.356111,97035.0,97034.0,0.0771]
[1736901461738,0.48333792,97035.0,97034.0,0.0771]
[1736901461891,0.48333792,97035.0,97034.0,0.38627]
[1736901462754,0.48382966,97035.0,97034.0,0.38627]
[1736901463156,0.49698966,97035.0,97034.0,0.38627]
[1736901463731,0.60121658,97035.0,97034.0,0.38627]
[1736901465808,0.61172307,97035.0,97034.0,0.38627]
[1736901466001,0.61172307,97035.0,97034.0,0.30917]
[1736901467051,0.60472307,97035.0,97034.0,0.30917]
[1736901467255,0.61272307,97035.0,97034.0,0.30917]
[1736901469162,0.50849615,97035.0,97034.0,0.30917]
[1736901469575,0.50049615,97035.0,97034.0,0.30917]
[1736901469995,0.50949615,97035.0,97034.0,0.30917]
[1736901470201,0.50049615,97035.0,97034.0,0.30917]
[1736901470621,0.50949615,97035.0,97034.0,0.30917]
[1736901470802,0.61372307,97035.0,97034.0,0.30917]
[1736901471641,0.51149615,97035.0,97034.0,0.30917]
[1736901472003,0.50949615,97035.0,97034.0,0.30917]
[1736901472565,0.51049615,97035.0,97034.0,0.30917]
[1736901472751,0.50433615,97035.0,97034.0,0.30917]
[1736901473092,0.34745269,97035.0,97034.0,0.37619066]
[1736901473214,0.23271928,97035.0,97034.0,0.51124066]
[1736901473407,0.23271928,97035.0,97034.0,0.56236473]
[1736901473408,0.24171928,97035.0,97034.0,0.56236473]
[1736901473672,0.24171928,97035.0,97034.0,0.51124066]
[1736901473673,0.01049174,97035.0,97034.0,0.51124066]
[1736901474100,0.00149174,97035.0,97034.0,0.51124066]
[1736901474304,0.20149174,97035.0,97034.0,0.51124066]
[1736901474516,0.20249174,97035.0,97034.0,0.51124066]
[1736901474929,0.20049174,97035.0,97034.0,0.51124066]
[1736901475178,0.20249174,97035.0,97034.0,0.51124066]
[1736901475381,0.20249174,97035.0,97034.0,0.51209426]
[1736901476445,0.20049174,97035.0,97034.0,0.51209426]
[1736901476593,0.20149174,97035.0,97034.0,0.51209426]
[1736901477188,0.20349174,97035.0,97034.0,0.51209426]
[1736901477558,0.20149174,97035.0,97034.0,0.51209426]
[1736901477783,0.20049174,97035.0,97034.0,0.51209426]
[1736901478183,0.20149174,97035.0,97034.0,0.51209426]
[1736901478644,0.20049174,97035.0,97034.0,0.51209426]
[1736901479038,0.20149174,97035.0,97034.0,0.51209426]
[1736901479630,0.20049174,97035.0,97034.0,0.51209426]
[1736901480240,0.20049174,97035.0,97034.0,0.61209426]
[1736901480620,0.20049174,97035.0,97034.0,0.71209426]
[1736901481051,0.20149174,97035.0,97034.0,0.71209426]
[1736901481407,0.07239174,97035.0,97034.0,0.71209426]
[1736901481607,0.01616334,97046.0,97045.0,0.17927066]
[1736901481813,0.01616334,97046.0,97045.0,0.81831982]
[1736901482019,0.00179257,97049.0,97048.0,0.16702066]
[1736901482271,0.00179257,97049.0,97048.0,0.4771808]
[1736901482467,0.00179257,97049.0,97048.0,0.47615066]
[1736901482687,0.00179257,97049.0,97048.0,0.48840066]
[1736901483287,0.00179257,97049.0,97048.0,0.48780066]
[1736901484715,0.00279257,97049.0,97048.0,0.48780066]
[1736901484938,0.00279257,97049.0,97048.0,0.48720066]
[1736901485138,0.00279257,97049.0,97048.0,0.81442758]
[1736901485364,0.00179571,97050.0,97048.0,0.81442758]
[1736901485365,0.00179571,97050.0,97049.0,0.48475166]
[1736901485567,0.0079553,97077.0,97076.0,0.15507066]
[1736901485779,0.0017953,97077.0,97076.0,0.46471066]
[1736901486006,0.0017953,97077.0,97076.0,0.67073466]
[1736901486461,0.0017953,97077.0,97076.0,0.77073466]
[1736901486675,0.0017953,97077.0,97076.0,0.87073466]
[1736901486880,0.0067953,97077.0,97076.0,0.87178399]
[1736901487082,0.0017953,97077.0,97076.0,0.87078399]
[1736901488149,0.0017953,97077.0,97076.0,0.87178399]
[1736901488714,0.0017953,97077.0,97076.0,0.87078399]
[1736901488927,0.0027953,97077.0,97076.0,0.87378399]
[1736901489130,0.0027953,97077.0,97076.0,0.87478399]
[1736901489539,0.0017953,97077.0,97076.0,0.97501091]
[1736901489739,0.0027953,97077.0,97076.0,0.97801091]
[1736901489923,0.0037953,97077.0,97076.0,0.98401091]
[1736901490767,0.0027953,97077.0,97076.0,0.97801091]
[1736901490967,0.0037953,97077.0,97076.0,0.98401091]
[1736901491336,0.0027953,97077.0,97076.0,0.98101091]
[1736901491839,0.0037953,97077.0,97076.0,0.98401091]
[1736901492197,0.0027953,97077.0,97076.0,0.97801091]
[1736901492512,0.0037953,97077.0,97076.0,0.98301091]
[1736901492861,0.0027953,97077.0,97076.0,0.97801091]
[1736901493285,0.0037953,97077.0,97076.0,0.98301091]
[1736901496708,0.0037953,97077.0,97076.0,1.13301091]
[1736901497113,0.0037953,97077.0,97076.0,1.17961091]
[1736901497446,0.0037953,97077.0,97076.0,0.75896333]
[1736901497670,0.0037953,97077.0,97076.0,0.60238399]
[1736901497869,0.0037953,97077.0,97076.0,0.70238399]
[1736901498308,0.0499,97118.0,97076.0,0.70238399]
[1736901498309,0.0813,97120.0,97097.0,0.38464966]
[1736901498519,0.00616,97115.0,97097.0,0.69421966]
[1736901498692,0.00616,97115.0,97097.0,0.69361966]
[1736901499709,0.15616,97115.0,97097.0,0.59561966]
[1736901499914,0.15616,97115.0,97097.0,0.527199]
[1736901500113,0.32853042,97110.0,97097.0,0.38764066]
[1736901500411,0.205952,97110.0,97097.0,0.38964066]
[1736901500598,0.205952,97110.0,97097.0,0.39104066]
[1736901500792,0.15616,97115.0,97097.0,0.47120193]
[1736901501191,0.22204007,97141.0,97097.0,0.56720193]
[1736901501397,0.00616,97123.0,97097.0,0.74290193]
[1736901501619,0.191267,97129.0,97097.0,0.85112885]
[1736901501821,0.00616,97125.0,97097.0,0.79330193]
[1736901502153,0.12257842,97120.0,97097.0,0.54272]
[1736901502322,0.205939,97117.0,97097.0,0.48644066]
[1736901502649,0.0027953,97098.0,97097.0,0.39644066]
[1736901503028,0.0027953,97098.0,97097.0,0.39144066]
[1736901503234,0.0037953,97098.0,97097.0,0.39744066]
[1736901503637,0.0027953,97098.0,97097.0,0.39144066]
[1736901503835,0.0027953,97098.0,97097.0,0.39444066]
[1736901504036,0.0027953,97098.0,97097.0,0.39384066]
[1736901504215,0.0027953,97098.0,97097.0,0.39084066]
[1736901504589,0.0037953,97098.0,97097.0,0.39084066]
[1736901504768,0.0027953,97098.0,97097.0,0.38584066]
[1736901505472,0.0037953,97098.0,97097.0,0.38984066]
[1736901505629,0.0027953,97098.0,97097.0,0.38984066]
[1736901505813,0.0017953,97098.0,97097.0,0.38584066]
[1736901506276,0.0017953,97098.0,97097.0,0.46862193]
[1736901506630,0.0027953,97098.0,97097.0,0.46862193]
[1736901507061,0.0027953,97098.0,97097.0,0.71502193]
[1736901507268,0.0027953,97098.0,97097.0,0.89494885]
[1736901507665,0.0027953,97098.0,97097.0,0.64874692]
[1736901507865,0.0027953,97098.0,97097.0,0.81516758]
[1736901508091,0.0027953,97098.0,97097.0,0.64574692]
[1736901508375,0.0027953,97098.0,97097.0,0.71094066]
[1736901508688,0.0017953,97098.0,97097.0,0.71094066]
[1736901508897,0.0017953,97098.0,97097.0,0.70794066]
[1736901509090,0.0027953,97098.0,97097.0,0.71394066]
[1736901509293,0.0027953,97098.0,97097.0,0.70794066]
[1736901509494,0.0027953,97098.0,97097.0,0.60149066]
[1736901509663,0.0037953,97098.0,97097.0,0.39584066]
[1736901509857,0.0037953,97098.0,97097.0,0.59584066]
[1736901510087,0.0017953,97098.0,97097.0,0.58584066]
[1736901510309,0.0017953,97098.0,97097.0,0.48584066]
[1736901510518,0.0027953,97098.0,97097.0,0.49184066]
[1736901510835,0.0027953,97098.0,97097.0,0.48584066]
[1736901510836,0.0017953,97098.0,97097.0,0.48584066]
[1736901511589,0.0027953,97098.0,97097.0,0.42542]
[1736901511792,0.0027953,97098.0,97097.0,0.39184066]
[1736901512184,0.0027953,97098.0,97097.0,0.32542]
[1736901512380,0.0027953,97098.0,97097.0,0.39184066]
[1736901512990,0.0027953,97098.0,97097.0,0.39084066]
[1736901513382,0.0017953,97098.0,97097.0,0.38584066]
[1736901514295,0.0037953,97098.0,97097.0,0.38584066]
[1736901514448,0.0017953,97098.0,97097.0,0.38584066]
[1736901514877,0.0017953,97098.0,97097.0,0.38884066]
[1736901515251,0.0017953,97098.0,97097.0,0.38584066]
[1736901515652,0.0017953,97098.0,97097.0,0.38984066]
[1736901515921,0.0017953,97098.0,97097.0,0.39184066]
[1736901516051,0.0017953,97098.0,97097.0,0.38784066]
[1736901516258,0.0017953,97098.0,97097.0,0.38584066]
[1736901516456,0.0017953,97098.0,97097.0,0.39184066]
[1736901516920,0.27679875,97098.0,97097.0,0.32342]
[1736901517090,0.43879986,97098.0,97097.0,0.31297]
[1736901517286,0.76331386,97098.0,97097.0,0.31247]
[1736901517497,0.60471186,97098.0,97097.0,0.31247]
[1736901517695,0.62610986,97098.0,97097.0,0.31247]
[1736901517929,0.62610986,97098.0,97097.0,0.30847]
[1736901518412,0.64226628,97098.0,97097.0,0.31147]
[1736901518902,0.64226628,97098.0,97097.0,0.30847]
[1736901519173,0.64226628,97098.0,97097.0,0.30947]
[1736901519641,0.64026628,97098.0,97097.0,0.30947]
[1736901519840,0.64026628,97098.0,97097.0,0.30847]
[1736901519967,0.61948975,97098.0,97097.0,0.30847]
[1736901520176,0.55217275,97098.0,97097.0,0.30847]
[1736901520420,0.41702333,97098.0,97097.0,0.30847]
[1736901520783,0.63823133,97098.0,97097.0,0.30947]
[1736901521176,0.64023133,97098.0,97097.0,0.30947]
[1736901521702,0.42602333,97098.0,97097.0,0.30947]
[1736901522093,0.41802333,97098.0,97097.0,0.30847]
[1736901522309,0.63784633,97098.0,97097.0,0.30847]
[1736901522510,0.61084633,97098.0,97097.0,0.30847]
[1736901522711,0.60284633,97098.0,97097.0,0.30847]
[1736901522912,0.60384633,97098.0,97097.0,0.30847]
[1736901523111,0.61084633,97098.0,97097.0,0.30847]
[1736901523315,0.41802333,97098.0,97097.0,0.30847]
[1736901523515,0.62744633,97098.0,97097.0,0.30847]
[1736901523843,0.60444633,97098.0,97097.0,0.3093232]
[1736901524048,0.41802333,97098.0,97097.0,0.3093232]
[1736901524274,0.41702333,97098.0,97097.0,0.3093232]
[1736901524639,0.41802333,97098.0,97097.0,0.3093232]
[1736901524854,0.61192119,97098.0,97097.0,0.3093232]
[1736901525574,0.61892119,97098.0,97097.0,0.3093232]
[1736901525775,0.61192119,97098.0,97097.0,0.3093232]
[1736901526215,0.61892119,97098.0,97097.0,0.3093232]
[1736901526405,0.7107065,97098.0,97097.0,0.3093232]
[1736901526820,0.7037065,97098.0,97097.0,0.3093232]
[1736901527202,0.72686274,97098.0,97097.0,0.3093232]
[1736901527411,0.72586274,97098.0,97097.0,0.3093232]
[1736901527557,0.72686274,97098.0,97097.0,0.3093232]
[1736901528028,0.63507743,97098.0,97097.0,0.3093232]
[1736901528210,0.63407743,97098.0,97097.0,0.3093232]
[1736901528420,0.62707743,97098.0,97097.0,0.3093232]
[1736901528601,0.62807743,97098.0,97097.0,0.3093232]
[1736901528799,0.63507743,97098.0,97097.0,0.3093232]
[1736901529498,0.81864805,97098.0,97097.0,0.3093232]
[1736901530091,0.67636243,97098.0,97097.0,0.3093232]
[1736901530371,0.66020619,97098.0,97097.0,0.3093232]
[1736901531167,0.88966946,97098.0,97097.0,0.3093232]
[1736901532224,0.66020619,97098.0,97097.0,0.3093232]
[1736901533147,0.66020619,97098.0,97097.0,0.28269315]
[1736901533307,0.68065123,97098.0,97097.0,0.28269315]
[1736901533752,0.67965123,97098.0,97097.0,0.28269315]
[1736901533960,0.67265123,97098.0,97097.0,0.28269315]
[1736901534115,0.67665123,97098.0,97097.0,0.28269315]
[1736901534651,0.67265123,97098.0,97097.0,0.28269315]
[1736901534846,0.67665123,97098.0,97097.0,0.28269315]
[1736901535391,0.68565123,97098.0,97097.0,0.28269315]
[1736901535578,0.58392823,97098.0,97097.0,0.28269315]
[1736901535774,0.57492823,97098.0,97097.0,0.28269315]
[1736901535980,0.58392823,97098.0,97097.0,0.28269315]
[1736901536208,1.97062023,97098.0,97097.0,0.28269315]
[1736901536730,1.97062023,97098.0,97097.0,0.1005664]
[1736901536731,2.00419957,97098.0,97097.0,0.1005664]
[1736901536928,0.379022,97077.0,97070.0,0.06642066]
[1736901537239,0.52731112,97077.0,97076.0,0.30907933]
[1736901538451,0.54347054,97077.0,97076.0,0.30907933]
[1736901538675,0.54947054,97077.0,97076.0,0.30907933]
[1736901539053,0.54347054,97077.0,97076.0,0.30907933]
[1736901539284,0.55247054,97077.0,97076.0,0.30907933]
[1736901539499,0.54347054,97077.0,97076.0,0.30907933]
[1736901539918,0.55247054,97077.0,97076.0,0.30907933]
[1736901540215,0.5626814,97077.0,97076.0,0.30907933]
[1736901540411,0.54652198,97077.0,97076.0,0.30907933]
[1736901540799,0.54752198,97077.0,97076.0,0.30907933]
[1736901541000,0.63989793,97077.0,97076.0,0.30907933]
[1736901541197,0.59483573,97077.0,97076.0,0.30907933]
[1736901541399,0.37197373,97077.0,97076.0,0.38594999]
[1736901541623,0.21397373,97077.0,97076.0,0.38594999]
[1736901541828,0.22297373,97077.0,97076.0,0.38594999]
[1736901542023,0.22197373,97077.0,97076.0,0.38594999]
[1736901542230,0.21297373,97077.0,97076.0,0.38594999]
[1736901542457,0.22097373,97077.0,97076.0,0.38594999]
[1736901542815,0.01021086,97077.0,97076.0,0.38594999]
[1736901543043,0.001,97077.0,97076.0,0.38594999]
[1736901543241,0.004,97077.0,97076.0,0.38594999]
[1736901543373,0.001,97077.0,97076.0,0.38594999]
[1736901544275,0.00616,97082.0,97081.0,0.01045]
[1736901544476,0.10422692,97082.0,97081.0,0.31947]
[1736901545359,0.10422692,97082.0,97081.0,0.32147]
[1736901545522,0.14040418,97098.0,97094.0,0.06642066]
[1736901545878,0.09237595,97096.0,97095.0,0.07687066]
[1736901546074,0.09853595,97096.0,97095.0,0.38585066]
[1736901546441,0.30451695,97096.0,97095.0,0.38585066]
[1736901546641,0.212141,97096.0,97095.0,0.38585066]
[1736901547249,0.22829684,97096.0,97095.0,0.38585066]
[1736901548052,0.23429684,97096.0,97095.0,0.38585066]
[1736901548472,0.33852376,97096.0,97095.0,0.38585066]
[1736901550231,0.13254276,97096.0,97095.0,0.38585066]
[1736901550469,0.006,97096.0,97095.0,0.38585066]
[1736901552068,0.006,97096.0,97095.0,0.43175066]
[1736901552297,0.006,97096.0,97095.0,0.53175066]
[1736901553129,0.00179173,97097.0,97096.0,0.38285166]
[1736901553364,0.00179173,97097.0,97096.0,0.69182166]
[1736901555509,0.00279173,97097.0,97096.0,0.87894858]
[1736901556110,0.00279173,97097.0,97096.0,0.97894858]
[1736901556338,0.00379173,97097.0,97096.0,0.98094858]
[1736901556478,0.00379173,97097.0,97096.0,0.97894858]
[1736901556932,0.00379173,97097.0,97096.0,0.97494858]
[1736901557309,0.00479173,97097.0,97096.0,0.97994858]
[1736901557640,0.00379173,97097.0,97096.0,0.97494858]
[1736901558145,0.00479173,97097.0,97096.0,0.98094858]
[1736901558503,0.00479173,97097.0,97096.0,0.87672166]
[1736901558709,0.00479173,97097.0,97096.0,0.610301]
[1736901558908,0.00479173,97097.0,97096.0,0.39384066]
[1736901559118,0.0152943,97097.0,97096.0,0.39384066]
[1736901559523,0.00379173,97097.0,97096.0,0.39384066]
[1736901559745,0.00279173,97097.0,97096.0,0.39269386]
[1736901559945,0.00379173,97097.0,97096.0,0.39369386]
[1736901560300,0.00379173,97097.0,97096.0,0.39269386]
[1736901560663,0.00379173,97097.0,97096.0,0.38669386]
[1736901560887,0.25801865,97097.0,97096.0,0.38669386]
[1736901561093,0.34211865,97097.0,97096.0,0.3158232]
[1736901561306,0.34211865,97097.0,97096.0,0.38224386]
[1736901561491,0.34111865,97097.0,97096.0,0.37624386]
[1736901561870,0.33911865,97097.0,97096.0,0.37924386]
[1736901562081,0.41501255,97097.0,97096.0,0.37924386]
[1736901562421,0.41501255,97097.0,97096.0,0.3128232]
[1736901562706,0.71051655,97097.0,97096.0,0.3128232]
[1736901562880,0.71151655,97097.0,97096.0,0.3098232]
[1736901563087,0.64544955,97097.0,97096.0,0.3098232]
[1736901563911,0.64944955,97097.0,97096.0,0.3098232]
[1736901564283,0.64944955,97097.0,97096.0,0.3128232]
[1736901564709,0.64944955,97097.0,97096.0,0.3098232]
[1736901565087,0.65044955,97097.0,97096.0,0.3098232]
[1736901565262,0.64544955,97097.0,97096.0,0.3098232]
[1736901565461,0.65444955,97097.0,97096.0,0.3098232]
[1736901565659,0.65344955,97097.0,97096.0,0.3098232]
[1736901566247,0.66444955,97097.0,97096.0,0.3098232]
[1736901566447,0.64644955,97097.0,97096.0,0.3098232]
[1736901566651,0.92366732,97097.0,97096.0,0.3098232]
[1736901566848,0.93266732,97097.0,97096.0,0.3098232]
[1736901567419,0.93066732,97097.0,97096.0,0.3098232]
[1736901567804,0.93166732,97097.0,97096.0,0.3098232]
[1736901567917,0.65444955,97097.0,97096.0,0.3098232]
[1736901568116,0.65344955,97097.0,97096.0,0.3098232]
[1736901568321,0.67160664,97097.0,97096.0,0.3098232]
[1736901568975,0.67860664,97097.0,97096.0,0.3098232]
[1736901569172,0.9557376,97097.0,97096.0,0.3098232]
[1736901569376,0.9597376,97097.0,97096.0,0.3098232]
[1736901570019,0.66460664,97097.0,97096.0,0.3098232]
[1736901570239,0.67360664,97097.0,97096.0,0.3098232]
[1736901570776,0.66060664,97097.0,97096.0,0.3098232]
[1736901571099,0.66260664,97097.0,97096.0,0.3098232]
[1736901571324,0.50126964,97097.0,97096.0,0.3098232]
[1736901571564,1.52189864,97097.0,97096.0,0.3098232]
[1736901571771,1.47891464,97097.0,97096.0,0.3098232]
[1736901572082,1.44385564,97097.0,97096.0,0.3098232]
[1736901572324,1.43485564,97097.0,97096.0,0.3098232]
[1736901572510,1.40466764,97097.0,97096.0,0.3098232]
[1736901572723,1.40466764,97097.0,97096.0,0.2443032]
[1736901572907,1.68176541,97097.0,97096.0,0.2413032]
[1736901573142,1.66560832,97097.0,97096.0,0.2413032]
[1736901573785,1.37951055,97097.0,97096.0,0.2413032]